bitfinex/quotes_ETHUSD_20250517
["timestamp","ask_amount","ask_price","bid_price","bid_amount"]
[1747497598276,31.64338736,2474.4,2474.0,1.25870266]
[1747497598652,4.04165911,2474.3,2474.0,1.25870266]
[1747497598860,4.04171423,2474.2,2474.0,1.25870266]
[1747497599076,4.04164289,2474.3,2474.0,1.25870266]
[1747497600694,27.602,2474.4,2474.0,1.25870266]
[1747497600972,27.602,2474.4,2474.0,0.7759]
[1747497601856,4.0418317,2474.2,2474.0,0.7759]
[1747497602371,4.04159644,2474.3,2473.8,8.9716]
[1747497602677,4.04194854,2474.1,2473.8,8.9716]
[1747497603373,4.0420439,2474.0,2473.7,0.55]
[1747497603676,0.7928,2474.1,2473.7,0.55]
[1747497604168,4.83476776,2474.1,2473.7,4.59252188]
[1747497604374,7.6,2474.0,2473.7,6.29399415]
[1747497605090,4.04221816,2473.9,2473.5,8.3794]
[1747497605273,7.6,2474.0,2473.6,4.04261766]
[1747497605587,20.0,2474.4,2473.6,4.82001549]
[1747497605815,24.04147296,2474.4,2473.9,4.04211275]
[1747497605954,24.04147296,2474.4,2474.0,4.81936154]
[1747497605955,20.0,2474.4,2474.0,4.81936154]
[1747497606291,27.6,2474.4,2474.1,4.81918436]
[1747497607073,20.0,2474.4,2474.3,4.5915471]
[1747497607297,20.0,2474.4,2474.3,5.3689471]
[1747497608375,0.26159166,2474.4,2474.3,12.9689471]
[1747497608548,0.3089866,2475.6,2475.1,4.04014315]
[1747497608747,11.63958875,2475.5,2475.0,4.59031482]
[1747497609078,4.03991565,2475.3,2475.0,0.55]
[1747497609283,4.03999677,2475.3,2474.9,8.152]
[1747497609591,4.03945572,2475.6,2474.9,8.152]
[1747497609780,5.39044557,2475.6,2475.2,0.8167]
[1747497610093,7.6,2475.5,2475.2,0.8167]
[1747497610287,5.39044557,2475.6,2475.2,0.8167]
[1747497610444,7.6,2475.5,2475.2,0.8167]
[1747497610844,7.599,2475.5,2475.2,0.8167]
[1747497611052,0.7525,2476.1,2475.3,4.58984024]
[1747497611286,7.599,2475.7,2475.3,4.58984024]
[1747497611779,11.63826719,2475.7,2475.3,4.58984024]
[1747497612493,7.599,2475.7,2475.4,0.38577855]
[1747497612966,1.35956193,2476.0,2475.6,4.85597494]
[1747497613160,7.599,2476.0,2475.7,0.55]
[1747497613576,4.03958796,2475.5,2475.4,0.38577855]
[1747497613882,4.03958796,2475.5,2475.4,0.48340582]
[1747497614261,4.03951221,2475.6,2475.4,0.48340582]
[1747497614462,4.03949011,2475.6,2475.4,0.48340582]
[1747497614673,4.84735524,2475.6,2475.4,0.48340582]
[1747497614878,0.80786513,2475.6,2475.4,0.48340582]
[1747497615701,7.597,2475.5,2475.4,0.48340582]
[1747497616501,7.597,2475.5,2475.3,0.8167]
[1747497618059,7.597,2475.5,2475.1,7.601]
[1747497618261,1.24443011,2475.4,2475.0,25.53440582]
[1747497618477,1.24443011,2475.4,2475.0,8.08340582]
[1747497618478,5.28423416,2475.4,2475.0,8.08340582]
[1747497619172,5.28423416,2475.4,2475.0,12.12378986]
[1747497619376,5.28423416,2475.4,2475.0,11.64038404]
[1747497619682,4.04016169,2475.2,2474.9,0.8167]
[1747497620296,5.40333934,2475.3,2474.9,0.8167]
[1747497620473,4.04009765,2475.2,2474.9,0.8167]
[1747497621175,4.04009765,2475.2,2475.0,0.38481798]
[1747497622481,4.04009765,2475.2,2474.9,0.8167]
[1747497622804,1.36337342,2475.3,2474.9,0.8167]
[1747497622978,4.03994529,2475.3,2474.9,4.85718516]
[1747497624384,7.596,2475.4,2475.3,0.7804]
[1747497625421,4.03933652,2475.7,2475.3,0.7804]
[1747497625667,7.596,2475.5,2475.3,0.7804]
[1747497626284,4.03937886,2475.7,2475.3,4.82029542]
[1747497626471,7.596,2475.6,2475.3,4.82029542]
[1747497627392,7.596,2475.6,2475.3,0.7804]
[1747497627791,4.03937886,2475.7,2475.3,0.7804]
[1747497628002,7.596,2475.6,2475.3,0.7804]
[1747497628809,7.596,2475.6,2475.4,0.38496801]
[1747497629178,11.63542841,2475.6,2475.4,0.38496801]
[1747497629503,4.03958796,2475.5,2475.4,0.38496801]
[1747497629868,13.202969,2475.6,2475.4,0.38496801]
[1747497630082,4.03958796,2475.5,2475.4,0.38496801]
[1747497630796,4.84378796,2475.5,2475.4,0.38496801]
[1747497631096,20.91934407,2475.5,2475.4,0.38496801]
[1747497631403,23.88011081,2475.5,2475.4,0.38496801]
[1747497632190,4.04076077,2474.8,2474.4,8.4054]
[1747497632505,11.63676077,2474.8,2474.4,8.4054]
[1747497632898,7.596,2474.8,2474.4,12.44665694]
[1747497633085,7.596,2474.8,2474.4,14.86030135]
[1747497633808,7.596,2474.8,2474.5,0.38565119]
[1747497634210,11.63675601,2474.8,2474.5,0.38565119]
[1747497634509,4.04105714,2474.6,2474.5,0.38565119]
[1747497635479,4.84145714,2474.6,2474.5,0.38565119]
[1747497635671,4.04105714,2474.6,2474.5,0.38565119]
[1747497636282,5.60851662,2474.6,2474.5,0.38565119]
[1747497636482,4.04142402,2474.4,2474.2,0.8051]
[1747497636686,4.04142402,2474.4,2474.1,8.07940582]
[1747497636884,11.63742402,2474.4,2474.1,8.07940582]
[1747497637586,11.63747107,2474.4,2474.1,8.07940582]
[1747497638312,4.04171045,2474.2,2474.1,0.48340582]
[1747497638512,7.596,2474.4,2474.2,0.3860568]
[1747497638700,4.0415471,2474.3,2474.2,0.3860568]
[1747497638904,8.91645378,2474.4,2474.2,0.3860568]
[1747497639219,11.6374329,2474.4,2474.2,0.3860568]
[1747497639517,4.0415471,2474.3,2474.2,0.3860568]
[1747497640696,11.6385471,2474.3,2474.2,0.3860568]
[1747497641419,12.4085471,2474.3,2474.2,0.3860568]
[1747497642491,4.04181595,2474.2,2473.8,8.90490582]
[1747497643015,4.0419013,2474.1,2473.8,8.90490582]
[1747497643423,8.367,2474.3,2473.8,12.94725075]
[1747497643594,11.63869155,2474.3,2473.8,13.79442545]
[1747497643918,4.04089384,2474.7,2474.2,4.83679702]
[1747497644126,7.598,2474.5,2474.2,0.7952]
[1747497644695,11.63922283,2474.5,2474.2,0.7952]
[1747497645693,4.04111711,2474.6,2474.2,0.7952]
[1747497645892,7.598,2474.5,2474.2,0.7952]
[1747497646093,11.63923092,2474.5,2474.2,0.7952]
[1747497647308,11.63923092,2474.5,2474.3,0.38540107]
[1747497647824,4.81138376,2474.4,2474.3,0.38540107]
[1747497648333,4.04201978,2474.1,2473.9,0.48340582]
[1747497648494,11.63903718,2474.0,2473.9,0.48340582]
[1747497650210,11.63903718,2474.0,2473.9,0.38544109]
[1747497651912,4.04243974,2473.8,2473.6,7.598]
[1747497652930,4.04252738,2473.7,2473.6,7.598]
[1747497653834,7.598,2473.8,2473.6,7.598]
[1747497654035,4.04252738,2473.7,2473.6,7.598]
[1747497655133,4.04285425,2473.5,2473.4,1.0]
[1747497655839,4.04275051,2473.6,2473.4,1.0]
[1747497656140,4.04285425,2473.5,2473.4,1.0]
[1747497657158,4.04285425,2473.5,2473.4,1.38535799]
[1747497657441,4.04252738,2473.7,2473.4,1.38535799]
[1747497657619,4.04276835,2473.6,2473.4,1.38535799]
[1747497658557,4.79505425,2473.5,2473.4,1.0]
[1747497659134,20.02805425,2473.5,2473.4,1.0]
[1747497659657,28.02805425,2473.5,2473.4,1.0]
[1747497660550,36.10361036,2473.5,2473.4,1.0]
[1747497660726,37.49547942,2473.5,2473.4,1.0]
[1747497660934,44.52015874,2473.5,2473.4,1.0]
[1747497661767,48.52015874,2473.5,2473.4,1.0]
[1747497663256,33.28715874,2473.5,2473.4,1.0]
[1747497663466,48.51515874,2473.5,2473.4,1.0]
[1747497664162,33.28715874,2473.5,2473.4,1.0]
[1747497664328,48.51215874,2473.5,2473.4,1.0]
[1747497664732,33.28715874,2473.5,2473.4,1.0]
[1747497665166,25.28715874,2473.5,2473.4,1.0]
[1747497665463,39.52428968,2473.5,2473.4,1.0]
[1747497666255,23.14308968,2473.5,2473.4,1.0]
[1747497666461,26.77308968,2473.5,2473.4,1.0]
[1747497666637,26.77608968,2473.5,2473.4,1.0]
[1747497667360,37.85797142,2473.5,2473.4,1.0]
[1747497667665,38.61047142,2473.5,2473.4,1.0]
[1747497668122,42.61047142,2473.5,2473.4,1.0]
[1747497669246,42.61047142,2473.5,2473.4,0.04559482]
[1747497669446,4.79698938,2472.5,2472.4,0.48340582]
[1747497669671,14.9079602,2472.5,2472.4,0.48340582]
[1747497669858,7.665,2472.5,2472.4,0.48340582]
[1747497670060,8.07555611,2472.7,2472.4,1.25070582]
[1747497670262,7.67,2472.6,2472.4,1.25070582]
[1747497670476,7.671,2472.6,2472.5,0.55]
[1747497670633,7.671,2472.6,2472.4,1.25070582]
[1747497671554,7.671,2472.6,2472.4,0.7673]
[1747497674480,7.671,2472.6,2472.4,4.81194845]
[1747497674661,7.671,2472.6,2472.4,0.7673]
[1747497676083,4.04473303,2472.4,2472.2,1.46396667]
[1747497676647,4.0446229,2472.5,2472.2,1.46396667]
[1747497676882,7.661,2472.4,2472.3,4.04474259]
[1747497677088,7.661,2472.5,2472.4,4.84188566]
[1747497677391,4.04481656,2472.3,2472.2,0.66666667]
[1747497678050,8.6224897,2472.3,2472.2,0.66666667]
[1747497678255,31.97804581,2472.3,2472.2,0.66666667]
[1747497679731,31.94684581,2472.3,2472.2,0.66666667]
[1747497679905,39.94684581,2472.3,2472.2,0.66666667]
[1747497680088,43.94684581,2472.3,2472.2,0.66666667]
[1747497680602,40.18677267,2472.3,2472.2,0.66666667]
[1747497680755,32.58377267,2472.3,2472.2,0.66666667]
[1747497681183,36.35084581,2472.3,2472.2,0.66666667]
[1747497681392,24.89977267,2472.3,2472.2,0.66666667]
[1747497681552,36.21077267,2472.3,2472.2,0.66666667]
[1747497681948,36.20977267,2472.3,2472.2,0.66666667]
[1747497682195,20.89977267,2472.3,2472.2,0.66666667]
[1747497682397,42.47228837,2472.3,2472.2,0.66666667]
[1747497683057,46.47228837,2472.3,2472.2,0.66666667]
[1747497683298,31.16128837,2472.3,2472.2,0.66666667]
[1747497683597,46.47528837,2472.3,2472.2,0.66666667]
[1747497683755,31.16128837,2472.3,2472.2,0.66666667]
[1747497683956,46.47328837,2472.3,2472.2,0.66666667]
[1747497684287,31.16128837,2472.3,2472.2,0.66666667]
[1747497684487,46.47128837,2472.3,2472.2,0.66666667]
[1747497685594,46.84664892,2472.3,2472.2,0.66666667]
[1747497687090,46.93464892,2472.3,2472.2,0.66666667]
[1747497687512,46.55928837,2472.3,2472.2,0.66666667]
[1747497688370,46.55628837,2472.3,2472.2,0.66666667]
[1747497689319,42.55628837,2472.3,2472.2,0.66666667]
[1747497689673,42.55228837,2472.3,2472.2,0.66666667]
[1747497689868,27.16128837,2472.3,2472.2,0.66666667]
[1747497690071,27.82037267,2472.3,2472.2,0.66666667]
[1747497690382,35.51037267,2472.3,2472.2,0.66666667]
[1747497691384,27.82037267,2472.3,2472.2,0.66666667]
[1747497691583,35.50737267,2472.3,2472.2,0.66666667]
[1747497692366,27.50737267,2472.3,2472.2,0.66666667]
[1747497694833,27.88337315,2472.3,2472.2,0.66666667]
[1747497695872,31.88337315,2472.3,2472.2,0.66666667]
[1747497696080,40.64577315,2472.3,2472.2,0.66666667]
[1747497696442,40.87146445,2472.3,2472.2,0.66666667]
[1747497697536,41.42146445,2472.3,2472.0,0.005]
[1747497697742,12.80885328,2471.3,2471.2,0.66666667]
[1747497697974,49.74161772,2471.3,2471.2,0.66666667]
[1747497698146,49.75461772,2471.3,2471.2,0.66666667]
[1747497698348,50.1306182,2471.3,2471.2,0.66666667]
[1747497698892,38.6486182,2471.3,2471.2,0.66666667]
[1747497699189,34.88154506,2471.3,2471.2,0.66666667]
[1747497699501,24.97185376,2471.3,2471.2,0.66666667]
[1747497699801,24.59585328,2471.3,2471.2,0.66666667]
[1747497700080,8.04645328,2471.3,2471.2,0.66666667]
[1747497700242,11.85445328,2471.3,2471.2,0.66666667]
[1747497700443,11.85945328,2471.3,2471.2,0.66666667]
[1747497700954,11.86045328,2471.3,2471.2,0.66666667]
[1747497701141,4.04645328,2471.3,2471.2,0.66666667]
[1747497701472,11.85845328,2471.3,2471.2,0.66666667]
[1747497702480,10.8750948,2471.4,2471.2,0.66666667]
[1747497702656,7.808,2471.3,2471.2,0.66666667]
[1747497702857,11.85445328,2471.3,2471.2,0.66666667]
[1747497703082,11.85245328,2471.3,2471.2,0.66666667]
[1747497703378,14.12520401,2471.3,2471.2,0.66666667]
[1747497703587,14.13620401,2471.3,2471.2,0.66666667]
[1747497704591,4.04645328,2471.3,2471.2,0.66666667]
[1747497704797,11.86145328,2471.3,2471.2,0.66666667]
[1747497705287,12.61535328,2471.3,2471.2,0.66666667]
[1747497705486,20.61535328,2471.3,2471.2,0.66666667]
[1747497706471,24.84099222,2471.3,2471.2,0.66666667]
[1747497706870,28.41481326,2471.3,2471.2,0.66666667]
[1747497707072,24.84099222,2471.3,2471.2,0.66666667]
[1747497707697,17.02599222,2471.3,2471.2,0.66666667]
[1747497708210,31.79509222,2471.3,2471.2,0.66666667]
[1747497708875,27.56945328,2471.3,2471.2,0.66666667]
[1747497709978,27.56545328,2471.3,2471.2,0.66666667]
[1747497710299,12.04645328,2471.3,2471.2,0.66666667]
[1747497710601,27.56745328,2471.3,2471.2,0.66666667]
[1747497713117,4.04645328,2471.3,2471.2,0.66666667]
[1747497713419,11.85645328,2471.3,2471.2,0.66666667]
[1747497714616,4.04645328,2471.3,2471.2,0.66666667]
[1747497714834,11.85945328,2471.3,2471.2,0.66666667]
[1747497716586,19.85945328,2471.3,2471.2,0.66666667]
[1747497716986,20.62985328,2471.3,2471.2,0.66666667]
[1747497717356,24.39692642,2471.3,2471.2,0.66666667]
[1747497718026,20.62985328,2471.3,2471.2,0.66666667]
[1747497719111,30.66985328,2471.3,2471.2,0.66666667]
[1747497719429,34.24367432,2471.3,2471.2,0.66666667]
[1747497719629,30.62392642,2471.3,2471.2,0.66666667]
[1747497719835,46.24492642,2471.3,2471.2,0.66666667]
[1747497720530,4.0482552,2470.2,2470.1,0.48340582]
[1747497720732,4.04779956,2470.5,2470.1,0.48340582]
[1747497720733,10.04,2470.5,2470.1,5.32940272]
[1747497720930,14.08786751,2470.5,2470.2,0.53294027]
[1747497721103,14.08786751,2470.5,2470.1,1.28110582]
[1747497721710,10.04,2470.5,2470.1,5.3295207]
[1747497721919,4.0,2471.3,2471.0,0.7977]
[1747497722118,4.0,2471.1,2471.0,0.7977]
[1747497722325,11.881,2471.1,2471.0,0.7977]
[1747497722942,7.881,2471.1,2471.0,0.7977]
[1747497723241,6.2070472,2471.2,2471.0,0.7977]
[1747497723443,7.876,2471.1,2471.0,0.7977]
[1747497723910,10.25373603,2471.2,2471.0,0.7977]
[1747497724106,7.872,2471.1,2471.0,0.7977]
[1747497724297,7.872,2471.1,2470.6,0.7977]
[1747497724507,4.04743594,2470.7,2470.6,0.7977]
[1747497725208,11.92643594,2470.7,2470.6,0.7977]
[1747497726430,11.92643594,2470.7,2470.6,1.18478873]
[1747497727650,4.04743594,2470.7,2470.6,1.18478873]
[1747497727830,7.868,2470.7,2470.6,1.18478873]
[1747497728011,12.04701358,2471.0,2470.6,1.18478873]
[1747497728350,11.91420007,2470.9,2470.6,1.18478873]
[1747497728907,11.91420007,2470.9,2470.7,0.38708873]
[1747497729340,4.04727213,2470.8,2470.7,0.38708873]
[1747497730157,12.04727213,2470.8,2470.7,0.38708873]
[1747497730452,4.04776361,2470.5,2470.4,0.48340582]
[1747497730748,29.84776361,2470.5,2470.4,0.48340582]
[1747497731619,30.07430965,2470.5,2470.4,0.48340582]
[1747497732049,30.82904376,2470.5,2470.4,0.48340582]
[1747497732253,31.58484376,2470.5,2470.4,0.48340582]
[1747497732550,31.58484376,2470.5,2469.4,0.7961]
[1747497732551,4.04874691,2469.9,2469.8,0.38708873]
[1747497732707,14.41611233,2469.9,2469.8,0.38708873]
[1747497732907,10.74473411,2469.9,2469.8,0.38708873]
[1747497733140,18.64873411,2469.9,2469.8,0.38708873]
[1747497733455,25.34345443,2469.9,2469.8,0.38708873]
[1747497733606,24.96608901,2469.9,2469.8,0.38708873]
[1747497734050,24.96608901,2469.9,2469.6,0.27191577]
[1747497734233,4.04899571,2469.8,2469.6,0.27191577]
[1747497734438,8.0,2469.7,2469.6,0.27191577]
[1747497734637,12.97692241,2469.7,2469.6,0.27191577]
[1747497734809,32.73992241,2469.7,2469.6,0.27191577]
[1747497735148,33.1164517,2469.7,2469.6,0.27191577]
[1747497735352,17.73000373,2469.7,2469.6,0.27191577]
[1747497735648,4.05015549,2469.1,2468.8,0.7944]
[1747497735815,7.956,2469.0,2468.8,0.7944]
[1747497736313,7.956,2469.0,2468.8,4.84490777]
[1747497736643,7.956,2469.0,2468.8,0.7944]
[1747497736826,7.956,2469.0,2468.8,4.84493719]
[1747497737026,7.956,2469.0,2468.8,0.7944]
[1747497737649,7.956,2469.0,2468.8,4.84493325]
[1747497737814,8.0,2469.6,2468.8,0.7944]
[1747497738014,4.04968249,2469.4,2468.8,0.7944]
[1747497738220,8.0,2469.4,2468.8,0.7944]
[1747497738418,4.04996936,2469.2,2468.8,0.7944]
[1747497738727,12.04961639,2469.4,2468.8,4.84487729]
[1747497738728,7.941,2469.1,2468.8,4.84487729]
[1747497739041,7.941,2469.1,2468.9,4.05025006]
[1747497739555,17.863,2469.3,2469.0,4.05022276]
[1747497739752,7.938,2469.2,2469.0,4.05022276]
[1747497739939,7.937,2469.1,2469.0,4.05014306]
[1747497740456,7.937,2469.1,2468.9,4.05030525]
[1747497741157,7.937,2469.1,2468.8,0.7944]
[1747497741832,7.937,2469.1,2468.8,4.84494164]
[1747497742382,10.91069052,2469.1,2468.4,0.7623]
[1747497742566,4.05070789,2468.8,2468.4,0.7623]
[1747497742728,0.7,2468.9,2468.4,0.7623]
[1747497742932,7.96,2468.8,2468.4,0.7623]
[1747497743255,8.73,2468.8,2468.1,0.6445411]
[1747497743554,7.978,2468.7,2468.2,0.7862]
[1747497743733,7.978,2468.7,2468.4,0.7862]
[1747497744365,7.978,2468.7,2468.2,4.43640989]
[1747497744366,4.0511608,2468.5,2468.2,0.38497212]
[1747497744559,4.05121078,2468.4,2468.2,0.38497212]
[1747497744720,9.18085143,2468.7,2468.2,0.38497212]
[1747497744921,4.05095369,2468.6,2468.2,0.38497212]
[1747497745430,12.03706307,2468.5,2468.2,0.38497212]
[1747497745636,12.03706307,2468.5,2468.1,0.7862]
[1747497746044,7.992,2469.0,2468.6,0.55]
[1747497746251,7.992,2469.0,2468.8,0.7862]
[1747497746621,4.05038681,2468.9,2468.5,7.815]
[1747497746849,12.04233832,2469.0,2468.6,0.7862]
[1747497747049,4.0504579,2468.9,2468.6,0.7862]
[1747497747377,7.995,2468.8,2468.6,0.7862]
[1747497747928,4.05030473,2469.0,2468.6,0.7862]
[1747497748254,7.992,2468.9,2468.6,4.83699879]
[1747497748775,7.991,2468.8,2468.7,4.05071495]
[1747497749166,4.05007181,2469.1,2468.7,4.05071495]
[1747497749355,7.987,2468.9,2468.7,4.05071495]
[1747497749951,7.987,2468.9,2468.6,2.45650223]
[1747497749952,7.987,2468.9,2468.6,4.8370318]
[1747497750258,7.987,2468.9,2468.6,0.7862]
[1747497750457,4.04982133,2469.3,2468.7,4.05057968]
[1747497750458,7.99,2468.8,2468.7,4.05057968]
[1747497750863,18.35336663,2469.5,2468.7,4.93943877]
[1747497750864,7.99,2468.9,2468.7,4.93943877]
[1747497751167,7.99,2468.9,2468.6,0.7862]
[1747497751746,7.99,2468.9,2468.6,4.83698699]
[1747497751969,7.985,2468.8,2468.7,4.05064346]
[1747497752170,7.984,2468.8,2468.7,4.05064346]
[1747497752391,4.04997704,2469.2,2468.7,4.05064346]
[1747497752744,0.7,2469.0,2468.7,4.05064346]
[1747497752945,0.7,2469.0,2468.8,4.05042527]
[1747497753166,7.98,2468.9,2468.6,0.7862]
[1747497753367,7.979,2468.8,2468.6,0.7862]
[1747497754384,7.979,2468.8,2468.7,0.38537415]
[1747497760154,7.979,2468.8,2468.7,4.4360891]
[1747497760882,10.13,2469.3,2468.7,1.31270012]
[1747497761082,0.7802,2469.6,2469.1,5.36885235]
[1747497761083,4.04926906,2469.6,2469.1,5.36885235]
[1747497761282,7.95,2469.5,2469.2,4.43526052]
[1747497761464,7.967,2469.5,2469.3,4.04972414]
[1747497761668,7.967,2469.5,2469.2,4.43520194]
[1747497762153,0.7834,2470.1,2469.6,4.04915935]
[1747497762350,7.976,2470.1,2470.0,4.04844586]
[1747497762578,7.987,2470.4,2469.9,0.55]
[1747497762766,7.987,2470.3,2470.2,4.04813927]
[1747497762966,7.987,2470.3,2470.2,4.81693927]
[1747497763167,4.04748582,2470.7,2470.2,4.81693927]
[1747497763383,7.989,2470.6,2470.2,4.81693927]
[1747497763680,4.9353051,2470.7,2470.2,4.81693927]
[1747497763886,7.991,2470.5,2470.3,4.04806481]
[1747497764070,7.99,2470.4,2470.3,4.04797681]
[1747497764279,7.99,2470.4,2470.3,0.38537415]
[1747497765190,12.83692746,2470.4,2470.3,0.38537415]
[1747497766595,4.04818064,2470.3,2470.0,0.38537415]
[1747497766783,7.989,2470.2,2470.0,0.38537415]
[1747497766960,12.03727205,2470.2,2470.0,0.38537415]
[1747497767160,7.989,2470.2,2470.0,0.38537415]
[1747497767372,12.03730266,2470.2,2470.0,0.38537415]
[1747497767580,12.03730266,2470.2,2469.8,0.38537415]
[1747497767970,7.989,2470.2,2469.8,4.43428469]
[1747497768464,4.04818277,2470.3,2469.8,4.43428469]
[1747497768682,7.979,2470.1,2469.9,0.38537415]
[1747497769793,7.979,2470.1,2469.8,0.38537415]
[1747497770493,12.02742061,2470.1,2469.8,0.38537415]
[1747497771296,4.04874691,2469.9,2469.8,0.38537415]
[1747497771469,8.024,2469.9,2469.8,0.38537415]
[1747497772071,4.04832438,2470.2,2469.8,0.38537415]
[1747497772072,0.799,2470.4,2469.8,0.38537415]
[1747497772276,4.04851023,2470.1,2469.8,0.38537415]
[1747497772997,4.04859639,2470.0,2469.7,0.7559]
[1747497773592,4.04859639,2470.0,2469.1,0.6445411]
[1747497773593,0.7808,2469.9,2469.1,0.6445411]
[1747497773799,4.04918486,2469.7,2469.1,0.6445411]
[1747497773984,8.013,2469.6,2469.2,4.04985021]
[1747497774299,12.06224984,2469.6,2469.2,0.38574124]
[1747497774795,8.021,2469.5,2469.2,0.38574124]
[1747497775204,4.04973069,2469.3,2469.2,0.38574124]
[1747497775791,4.83053069,2469.3,2469.2,0.38574124]
[1747497776202,4.0498947,2469.2,2468.8,0.8308]
[1747497776401,0.7808,2469.1,2468.5,0.6445411]
[1747497776570,16.049,2469.0,2468.5,0.6445411]
[1747497776902,4.05056596,2468.8,2468.5,0.6445411]
[1747497777102,4.75056596,2468.8,2468.5,0.6445411]
[1747497777764,4.75056596,2468.8,2468.6,0.38613752]
[1747497777991,8.047,2468.7,2468.6,0.38613752]
[1747497778913,0.7,2468.8,2468.6,0.38613752]
[1747497779212,8.746,2468.8,2468.6,4.43692923]
[1747497779374,0.7,2468.8,2468.7,0.93613752]
[1747497779578,8.745,2468.8,2468.7,0.93613752]
[1747497780525,0.7,2468.8,2468.7,5.73965247]
[1747497780670,1.38477331,2471.3,2468.9,1.3028]
[1747497780671,4.04896777,2469.8,2468.9,1.3028]
[1747497780874,4.04896777,2469.8,2469.3,4.04972198]
[1747497780875,8.047,2469.7,2469.3,4.04972198]
[1747497781114,8.047,2469.6,2469.3,4.04972198]
[1747497781314,5.3407342,2469.8,2469.3,0.55]
[1747497781315,8.05,2469.5,2469.3,0.55]
[1747497781910,8.05,2469.5,2469.3,4.5996625]
[1747497782099,4.04900082,2469.8,2469.3,4.5996625]
[1747497782299,8.046,2469.7,2469.4,0.7528]
[1747497782519,8.045,2469.9,2469.6,4.59914805]
[1747497782713,8.044,2469.9,2469.7,4.04905668]
[1747497782875,8.044,2469.9,2469.6,4.59916198]
[1747497783412,8.042,2469.9,2469.7,0.38599475]
[1747497783713,4.04814425,2470.3,2469.8,4.88034033]
[1747497783714,8.041,2470.1,2469.8,4.88034033]
[1747497784071,8.041,2470.1,2469.8,0.8315]
[1747497784776,8.041,2470.1,2469.9,0.38599475]
[1747497784978,12.08943826,2470.1,2469.9,0.38599475]
[1747497785414,8.041,2470.1,2469.9,0.38599475]
[1747497786110,4.04858299,2470.0,2469.9,0.38599475]
[1747497786347,4.04858299,2470.0,2469.3,0.8315]
[1747497786348,12.07858299,2470.0,2469.4,4.69407212]
[1747497786644,4.04875693,2469.9,2469.4,4.69401484]
[1747497787041,12.07866254,2470.0,2469.5,4.0493959]
[1747497787339,8.027,2469.9,2469.6,0.55]
[1747497787743,4.04900644,2469.8,2469.4,0.6445411]
[1747497787944,4.04910738,2469.7,2469.4,0.6445411]
[1747497788130,4.04897887,2469.8,2469.3,4.8811929]
[1747497788331,8.032,2469.7,2469.3,0.8315]
[1747497788501,8.031,2469.6,2469.4,4.04948648]
[1747497788943,8.037,2469.6,2469.4,4.04948648]
[1747497789308,12.08626132,2469.6,2469.5,0.38625364]
[1747497789716,13.37522745,2469.6,2469.5,0.38625364]
[1747497790129,5.33822745,2469.6,2469.5,0.38625364]
[1747497790441,21.37622745,2469.6,2469.5,0.38625364]
[1747497791208,4.05008594,2469.1,2468.6,0.7652]
[1747497791409,8.038,2469.0,2468.6,4.81598061]
[1747497791610,8.035,2468.9,2468.6,6.57222789]
[1747497792049,8.035,2468.9,2468.6,2.52144728]
[1747497792246,12.08545712,2468.9,2468.6,0.7652]
[1747497792413,12.08545712,2468.9,2468.7,0.38636019]
[1747497793344,4.05055087,2468.8,2468.7,0.38636019]
[1747497793545,4.85395087,2468.8,2468.7,0.38636019]
[1747497793841,4.05104314,2468.5,2468.4,0.48293799]
[1747497796047,12.07804314,2468.5,2468.4,0.48293799]
[1747497796838,4.05093411,2468.6,2467.9,12.86821905]
[1747497797039,8.023,2468.5,2468.1,4.05161422]
[1747497797248,12.07411692,2468.5,2468.0,4.60178697]
[1747497797452,4.05121954,2468.4,2468.0,0.55]
[1747497797648,12.07412977,2468.5,2468.0,4.60184494]
[1747497798341,12.07411358,2468.5,2468.1,0.38582154]
[1747497798521,8.014,2468.4,2468.1,4.43752031]
[1747497798855,8.014,2468.4,2468.1,0.38582154]
[1747497799056,8.011,2468.3,2468.1,0.38582154]
[1747497799424,4.85402288,2468.8,2468.1,1.99258107]
[1747497799618,0.8034,2469.4,2468.5,0.55]
[1747497799846,4.05006421,2469.1,2468.6,4.05080934]
[1747497800729,12.06580333,2469.3,2468.7,0.38582154]
[1747497800730,4.05039253,2468.9,2468.7,0.38582154]
[1747497800937,8.01,2468.8,2468.7,0.38582154]
[1747497801162,4.04984603,2469.3,2468.7,0.38582154]
[1747497801357,8.019,2469.2,2468.9,0.7652]
[1747497801535,8.019,2469.4,2469.3,4.59961071]
[1747497801728,8.022,2469.9,2469.7,4.0489746]
[1747497801930,8.022,2469.9,2469.6,4.59912077]
[1747497802247,8.022,2469.9,2469.7,0.38582154]
[1747497802478,4.04815392,2470.3,2469.8,4.59880646]
[1747497802758,10.13,2470.4,2469.9,0.7652]
[1747497802971,8.022,2470.2,2469.9,0.7652]
[1747497803134,8.024,2470.4,2470.1,4.04833095]
[1747497803336,8.024,2470.4,2470.0,12.10150459]
[1747497803573,12.07201496,2470.4,2470.0,8.053]
[1747497803757,4.04784069,2470.5,2470.0,12.10158112]
[1747497803952,8.021,2470.4,2470.0,13.84813901]
[1747497804545,8.021,2470.4,2470.0,8.053]
[1747497804745,8.021,2470.4,2469.7,4.53199635]
[1747497804746,4.04889505,2469.9,2469.7,0.48293799]
[1747497804990,0.7588,2470.3,2469.7,0.48293799]
[1747497804991,12.07591084,2469.8,2469.7,0.48293799]
[1747497805163,8.03,2469.8,2469.7,0.48293799]
[1747497805479,12.07691084,2469.8,2469.7,0.48293799]
[1747497805877,13.68946369,2469.8,2469.7,0.48293799]
[1747497806072,14.44826369,2469.8,2469.7,0.48293799]
[1747497806274,22.44826369,2469.8,2469.7,0.48293799]
[1747497806442,4.04983911,2469.3,2468.9,8.53493799]
[1747497806644,8.028,2469.2,2468.9,12.58529879]
[1747497806947,10.37135285,2469.8,2469.0,1.25852988]
[1747497807147,8.034,2469.7,2469.3,4.04973069]
[1747497807362,8.0,2469.8,2469.3,4.04973069]
[1747497807363,8.036,2469.6,2469.3,0.55]
[1747497808043,8.032,2469.5,2469.4,4.04956669]
[1747497808284,8.031,2469.6,2469.5,4.04940271]
[1747497808572,12.07795689,2469.8,2469.5,0.45994027]
[1747497808875,8.029,2469.8,2469.5,0.45994027]
[1747497809035,12.07791117,2469.8,2469.5,0.45994027]
[1747497809235,12.07791117,2469.8,2469.6,0.38550085]